bitfinex/quotes_SOLUSD_20250425
["timestamp","ask_amount","ask_price","bid_price","bid_amount"]
[1745557951688,0.03,151.63,151.62,13.7225819]
[1745557951994,0.03,151.66,151.62,30.21117179]
[1745557952165,0.03,151.66,151.65,7.12714595]
[1745557952781,0.03,151.66,151.65,25.77679481]
[1745557953784,0.03,151.66,151.65,32.37092603]
[1745557956496,0.03,151.66,151.65,6.59413122]
[1745557956864,0.03,151.66,151.63,26.0]
[1745557957191,7.15714595,151.66,151.63,6.59493653]
[1745557957389,7.15714595,151.66,151.62,6.59540225]
[1745557958390,0.03,151.66,151.62,6.59540225]
[1745557958694,0.03,151.66,151.62,13.7225482]
[1745557959798,7.15714595,151.66,151.62,13.7225482]
[1745557960396,0.03,151.66,151.62,13.7225482]
[1745557960803,7.15714595,151.66,151.62,13.7225482]
[1745557961982,1.64867854,151.65,151.62,6.59540225]
[1745557962176,7.12714595,151.63,151.61,6.59581714]
[1745557962791,7.12714595,151.63,151.6,32.59629805]
[1745557963000,7.12714595,151.63,151.6,6.59629805]
[1745557964288,10.40042067,151.64,151.6,6.59629805]
[1745557966199,10.40042067,151.64,151.6,13.723444]
[1745557966401,1.6244,151.64,151.6,13.723444]
[1745557968308,7.15714595,151.66,151.61,7.12714595]
[1745557969008,8.77581933,151.65,151.61,7.12714595]
[1745557971285,7.12714595,151.64,151.6,7.12714595]
[1745557971486,0.03,151.66,151.63,7.12714595]
[1745557972385,0.03,151.66,151.64,7.12714595]
[1745557972584,0.03,151.66,151.65,7.12714595]
[1745557973598,0.03,151.66,151.65,13.72127717]
[1745557977396,0.03,151.66,151.65,32.37092603]
[1745557978095,0.03,151.66,151.65,32.5130876]
[1745557978601,1e-08,151.66,151.65,32.5130876]
[1745557980315,1e-08,151.66,151.65,32.37092603]
[1745557986906,1e-08,151.66,151.65,13.72127717]
[1745557987106,1e-08,151.66,151.65,6.59413122]
[1745557987316,1e-08,151.66,151.65,13.72127717]
[1745557996432,1e-08,151.66,151.65,6.59413122]
[1745557996835,1e-08,151.66,151.65,33.21101987]
[1745557998334,1e-08,151.66,151.65,32.37092603]
[1745558001530,1e-08,151.66,151.65,58.5130876]
[1745558006334,1e-08,151.66,151.65,140.0130876]
[1745558008944,1e-08,151.66,151.65,139.87092603]
[1745558009445,1e-08,151.66,151.65,140.0130876]
[1745558019969,1e-08,151.66,151.65,139.87092603]
[1745558020762,1e-08,151.66,151.65,6.59413122]
[1745558021149,1e-08,151.66,151.65,13.72127717]
[1745558022270,1e-08,151.66,151.64,25.24421493]
[1745558022579,1e-08,151.66,151.65,7.12714595]
[1745558023243,1e-08,151.66,151.65,25.91895638]
[1745558023662,1e-08,151.66,151.65,18.79181043]
[1745558023864,1e-08,151.66,151.65,25.91895638]
[1745558025351,1e-08,151.66,151.65,32.5130876]
[1745558032352,1e-08,151.66,151.65,58.5130876]
[1745558037679,1e-08,151.66,151.65,58.37092603]
[1745558037883,1e-08,151.66,151.65,39.72127717]
[1745558038288,1e-08,151.66,151.65,58.37092603]
[1745558043166,1e-08,151.66,151.65,58.5130876]
[1745558047290,1e-08,151.66,151.65,140.0130876]
[1745558048202,1e-08,151.66,151.65,114.09413122]
[1745558048503,1e-08,151.66,151.65,121.22127717]
[1745558049070,1e-08,151.66,151.65,114.09413122]
[1745558049370,1e-08,151.66,151.65,121.22127717]
[1745558049679,1e-08,151.66,151.65,139.87092603]
[1745558050201,1e-08,151.66,151.65,132.74378008]
[1745558050400,1e-08,151.66,151.65,139.87092603]
[1745558052476,1e-08,151.66,151.65,114.09413122]
[1745558052791,1e-08,151.66,151.65,121.22127717]
[1745558053198,1e-08,151.66,151.65,39.72127717]
[1745558062403,1e-08,151.66,151.65,58.37092603]
[1745558066489,1e-08,151.66,151.65,39.72127717]
[1745558068488,1e-08,151.66,151.65,32.59413122]
[1745558068815,1e-08,151.66,151.65,39.72127717]
[1745558069207,1e-08,151.66,151.65,6.59413122]
[1745558080133,1e-08,151.66,151.65,7.12714595]
[1745558080629,1e-08,151.66,151.64,6.59456607]
[1745558086038,1e-08,151.66,151.65,7.12714595]
[1745558087041,1e-08,151.66,151.65,13.72127717]
[1745558092847,1e-08,151.66,151.65,32.37092603]
[1745558094650,1e-08,151.66,151.65,32.5130876]
[1745558099954,1e-08,151.66,151.65,6.59413122]
[1745558100457,1e-08,151.66,151.65,13.72127717]
[1745558114774,1e-08,151.66,151.65,6.59413122]
[1745558114972,1e-08,151.66,151.65,13.72127717]
[1745558116070,1e-08,151.66,151.65,6.59413122]
[1745558120190,1e-08,151.66,151.64,7.12714595]
[1745558120862,1e-08,151.66,151.65,7.12714595]
[1745558122248,1e-08,151.66,151.65,32.37092603]
[1745558122448,1e-08,151.66,151.65,58.37092603]
[1745558124679,1e-08,151.66,151.65,58.5130876]
[1745558125356,1e-08,151.66,151.65,59.35224476]
[1745558126857,0.03,151.7,151.68,18.64964886]
[1745558127063,0.03,151.7,151.69,7.12714595]
[1745558128785,0.03,151.73,151.69,30.20051926]
[1745558128992,0.03,151.73,151.72,7.12714595]
[1745558130959,0.03,151.73,151.72,13.71823479]
[1745558132305,0.03,151.73,151.72,6.59108884]
[1745558136590,0.03,151.73,151.72,7.12714595]
[1745558137005,0.03,151.73,151.71,7.12714595]
[1745558137587,0.03,151.73,151.72,6.59108884]
[1745558142792,0.03,151.73,151.72,7.12714595]
[1745558143887,0.03,151.73,151.72,13.71823479]
[1745558146007,0.03,151.73,151.71,7.12714595]
[1745558147811,0.03,151.73,151.72,13.71823479]
[1745558150003,0.03,151.73,151.72,6.59108884]
[1745558151220,1.67772013,151.73,151.71,6.59139017]
[1745558152493,0.03,151.73,151.72,7.12714595]
[1745558152709,1e-08,151.73,151.72,60.252109]
[1745558153910,1e-08,151.73,151.72,53.12496305]
[1745558154216,1e-08,151.73,151.72,60.252109]
[1745558154419,1e-08,151.73,151.72,66.84319784]
[1745558154605,1e-08,151.73,151.72,67.68092621]
[1745558154792,1e-08,151.73,151.72,41.68092621]
[1745558154996,1e-08,151.73,151.72,123.18092621]
[1745558157905,1e-08,151.73,151.72,139.86788365]
[1745558163613,1e-08,151.73,151.72,121.21823479]
[1745558163822,1e-08,151.73,151.72,39.71823479]
[1745558164827,1e-08,151.73,151.72,6.59108884]
[1745558174027,1e-08,151.73,151.71,6.5915233]
[1745558174415,8.77510732,151.73,151.71,6.5915233]
[1745558174610,7.12714595,151.72,151.69,6.59239237]
[1745558174815,1.64811101,151.71,151.69,6.59239237]
[1745558175426,8.77525696,151.71,151.68,6.59267638]
[1745558175924,10.40355696,151.71,151.68,6.59267638]
[1745558177330,3.27641101,151.71,151.68,6.59267638]
[1745558177514,3.27641101,151.71,151.68,13.71982233]
[1745558178737,10.40355696,151.71,151.68,6.59267638]
[1745558179730,10.40355696,151.71,151.67,6.59326168]
[1745558182439,3.27641101,151.71,151.67,13.72040763]
[1745558182745,3.27641101,151.71,151.68,7.12714595]
[1745558183246,13.02,151.72,151.69,7.12714595]
[1745558184035,13.02,151.72,151.7,6.59195781]
[1745558184351,14.66797672,151.72,151.7,6.59195781]
[1745558185848,13.02,151.72,151.7,6.59195781]
[1745558187450,1.64798556,151.71,151.68,6.59239746]
[1745558187773,7.12714595,151.7,151.68,6.59239746]
[1745558188056,8.77558714,151.69,151.67,6.59317869]
[1745558189737,8.77558714,151.69,151.65,6.65713122]
[1745558189738,7.12714595,151.68,151.65,6.65713122]
[1745558189940,1.64849264,151.67,151.65,6.65713122]
[1745558190135,7.12714595,151.66,151.65,0.063]
[1745558193740,14.66866927,151.67,151.65,0.063]
[1745558193939,21.79581522,151.67,151.65,0.063]
[1745558194764,7.12714595,151.66,151.65,0.063]
[1745558197762,14.66866927,151.67,151.65,0.063]
[1745558198058,21.79581522,151.67,151.65,0.063]
[1745558198447,14.66866927,151.67,151.65,0.063]
[1745558198646,13.02,151.67,151.65,7.19014595]
[1745558199064,13.02,151.67,151.66,7.12714595]
[1745558199239,1.64834647,151.69,151.66,7.12714595]
[1745558199655,1.64834647,151.69,151.67,6.59326168]
[1745558199965,1.64829317,151.7,151.67,6.59326168]
[1745558200464,8.77543912,151.7,151.67,6.59326168]
[1745558202469,1.64829317,151.7,151.67,6.59326168]
[1745558204343,8.77543912,151.7,151.67,6.59326168]
[1745558206347,8.77543912,151.7,151.66,6.59359248]
[1745558206559,7.12714595,151.69,151.66,6.59359248]
[1745558206885,1.64852492,151.68,151.66,6.59359248]
[1745558207570,1.64846352,151.69,151.66,6.59359248]
[1745558207776,1.64846352,151.69,151.66,13.72073843]
[1745558208384,1.64828348,151.7,151.66,13.72073843]
[1745558209382,1.64828348,151.7,151.65,0.063]
[1745558209556,1.64828348,151.7,151.66,7.12714595]
[1745558210983,1.64828348,151.7,151.67,6.59326168]
[1745558211687,8.77542943,151.7,151.67,6.59326168]
[1745558212183,1.64828348,151.7,151.65,6.65679748]
[1745558212358,8.77542943,151.7,151.66,7.12714595]
[1745558212959,8.77542943,151.7,151.65,6.65679748]
[1745558213287,8.77542943,151.7,151.66,7.12714595]
[1745558214189,1.64828348,151.7,151.65,0.063]
[1745558214366,1.64828348,151.7,151.66,7.12714595]
[1745558214992,1.64828348,151.7,151.67,7.12714595]
[1745558215181,14.66833854,151.71,151.69,6.59239237]
[1745558216272,13.02,151.71,151.7,7.12714595]
[1745558217267,13.02,151.71,151.67,23.07641589]
[1745558217496,13.02,151.71,151.7,7.12714595]
[1745558219492,13.02,151.71,151.7,13.71910376]
[1745558219871,28.21348303,151.73,151.7,13.71910376]
[1745558220996,26.56549488,151.73,151.71,7.12714595]
[1745558221288,26.56549488,151.73,151.72,7.12714595]
[1745558221494,26.56549488,151.73,151.72,13.71823479]
[1745558225179,26.56549488,151.73,151.72,6.59108884]
[1745558226174,26.56549488,151.73,151.72,13.71823479]
[1745558230401,1e-08,151.73,151.72,13.71823479]
[1745558238712,1e-08,151.73,151.72,6.59108884]
[1745558238895,7.12714596,151.73,151.67,7.12714595]
[1745558239212,8.77529241,151.72,151.67,7.12714595]
[1745558239399,8.77529241,151.72,151.68,7.12714595]
[1745558240331,8.77529241,151.72,151.69,6.59239237]
[1745558240810,1.64814646,151.72,151.69,6.59239237]
[1745558241316,8.77529241,151.72,151.69,6.59239237]
[1745558243112,1.64814646,151.72,151.69,6.59239237]
[1745558243501,1.64814646,151.72,151.68,7.12714595]
[1745558243704,1.64814646,151.72,151.69,7.12714595]
[1745558244389,1e-08,151.73,151.71,7.12714595]
[1745558244593,1.64806063,151.73,151.71,7.12714595]
[1745558245112,1e-08,151.73,151.72,7.12714595]
[1745558245622,1e-08,151.73,151.72,6.59108884]
[1745558246130,1e-08,151.73,151.72,13.71823479]
[1745558250129,1e-08,151.73,151.7,6.59195781]
[1745558250356,1.64772039,151.73,151.7,6.59195781]
[1745558250514,1.64772039,151.73,151.7,13.71910376]
[1745558250703,1.64772039,151.73,151.71,7.12714595]
[1745558251427,1.64793536,151.72,151.71,7.12714595]
[1745558251642,1e-08,151.73,151.71,7.12714595]
[1745558252049,1e-08,151.73,151.7,6.59195781]
[1745558252235,1e-08,151.73,151.69,7.12714595]
[1745558253443,7.12714595,151.72,151.68,13.71997295]
[1745558253647,1.6481965,151.71,151.68,13.71997295]
[1745558253821,1.6481965,151.71,151.67,13.7203691]
[1745558254023,7.12714595,151.69,151.66,6.5935773]
[1745558254334,7.12714595,151.7,151.66,13.72072325]
[1745558254541,1.64832283,151.69,151.66,13.72072325]
[1745558256948,1.64832283,151.69,151.66,6.5935773]
[1745558257852,1.64832283,151.69,151.65,0.063]
[1745558258145,1.64832283,151.69,151.65,7.19014595]
[1745558259151,1.64832283,151.69,151.66,7.12714595]
[1745558260151,1.64836486,151.7,151.66,7.12714595]
[1745558261439,1.64836486,151.7,151.67,7.12714595]
[1745558263245,1.64836486,151.7,151.65,6.65704071]
[1745558263246,27.64836486,151.7,151.66,7.12714595]
[1745558263444,27.64836486,151.7,151.67,7.12714595]
[1745558263648,26.0,151.69,151.68,7.12714595]
[1745558263829,108.7,151.69,151.68,7.12714595]
[1745558264034,82.7,151.69,151.68,7.12714595]
[1745558264725,27.64825454,151.71,151.67,7.12714595]
[1745558268061,27.64825454,151.71,151.65,0.063]
[1745558268272,27.64825454,151.71,151.67,7.12714595]
[1745558268761,27.64825454,151.71,151.68,7.12714595]
[1745558269668,82.7,151.7,151.69,7.12714595]
[1745558269964,27.64825454,151.71,151.68,7.12714595]
[1745558270153,1.64825454,151.71,151.68,7.12714595]
[1745558270834,1.64825454,151.71,151.69,7.12714595]
[1745558271752,1.64825454,151.71,151.67,7.12714595]
[1745558274761,7.12714595,151.69,151.65,7.19014595]
[1745558274944,1.64837726,151.68,151.65,0.063]
[1745558275345,7.12714595,151.69,151.65,0.063]
[1745558275644,8.77551838,151.69,151.65,0.063]
[1745558276477,7.12714595,151.69,151.65,0.063]
[1745558276648,7.12714595,151.69,151.65,7.19014595]
[1745558276850,8.77551093,151.7,151.65,7.19014595]
[1745558277776,7.12714595,151.69,151.65,7.19014595]
[1745558278147,8.77551716,151.68,151.65,0.063]
[1745558278858,1.64837121,151.68,151.65,0.063]
[1745558279059,1.64837121,151.68,151.65,7.19014595]
[1745558279958,1.64837121,151.68,151.65,0.063]
[1745558280147,8.77551716,151.68,151.65,0.063]
[1745558280649,7.12714595,151.67,151.65,0.063]
[1745558280845,1.64859585,151.66,151.65,0.063]
[1745558284353,1.64859628,151.67,151.65,0.063]
[1745558288070,1.64860435,151.68,151.65,0.063]
[1745558289486,8.7757503,151.68,151.65,0.063]
[1745558293288,91.47554664,151.69,151.65,0.063]
[1745558296387,20.14714595,151.7,151.66,7.12714595]
[1745558297179,20.14714595,151.7,151.65,25.83979481]
[1745558297979,20.14714595,151.7,151.65,18.71264886]
[1745558298189,20.14714595,151.7,151.65,25.83979481]
[1745558298683,20.14714595,151.7,151.66,7.12714595]
[1745558300187,20.14714595,151.7,151.65,25.30676751]
[1745558300188,13.02,151.7,151.67,7.12714595]
[1745558300418,82.7,151.72,151.69,7.12714595]
[1745558300561,1.64782889,151.73,151.7,7.12714595]
[1745558300886,1.64782889,151.73,151.69,7.12714595]
[1745558301987,8.77497484,151.73,151.68,33.12714595]
[1745558302168,7.12714595,151.72,151.65,0.063]
[1745558302368,1.64810542,151.71,151.67,33.12714595]
[1745558302874,8.77525137,151.71,151.67,7.12714595]
[1745558303371,1.64810542,151.71,151.67,7.12714595]
[1745558308998,8.77524366,151.72,151.68,7.12714595]
[1745558309175,91.47524367,151.73,151.69,7.12714595]
[1745558310292,89.82714596,151.73,151.69,7.12714595]
[1745558310491,1e-08,151.73,151.69,7.12714595]
[1745558314486,1e-08,151.73,151.7,25.77679481]
[1745558314806,1e-08,151.73,151.71,7.12714595]
[1745558315305,1e-08,151.73,151.7,25.77679481]
[1745558315482,1e-08,151.73,151.68,18.64964886]
[1745558315483,7.12714595,151.72,151.68,18.64964886]
[1745558315682,7.12714595,151.71,151.67,25.77679481]
[1745558315881,7.12714595,151.71,151.66,32.59338161]
[1745558316186,7.12714595,151.71,151.68,18.64964886]
[1745558322206,7.12714595,151.72,151.68,18.64964886]
[1745558322506,7.12714595,151.72,151.68,25.77679481]
[1745558322705,7.12714595,151.72,151.68,18.64964886]
[1745558323011,7.12714595,151.72,151.68,25.77679481]
[1745558323200,7.12714595,151.72,151.68,18.64964886]
[1745558323685,91.47510992,151.73,151.68,25.77679481]
[1745558325313,82.70000001,151.73,151.7,18.64964886]
[1745558325885,1e-08,151.73,151.7,18.64964886]
[1745558326402,1e-08,151.73,151.69,18.64964886]
[1745558326403,7.12714596,151.73,151.69,18.64964886]
[1745558328909,1e-08,151.73,151.69,25.77679481]
[1745558334420,1e-08,151.73,151.69,18.64964886]
[1745558334721,1e-08,151.73,151.69,25.77679481]
[1745558338522,7.12714596,151.73,151.69,18.64964886]
[1745558338893,1e-08,151.73,151.69,25.77679481]
[1745558341200,1.64787534,151.72,151.68,7.12714595]
[1745558341410,1.64787535,151.73,151.69,7.12714595]
[1745558341614,1e-08,151.73,151.7,7.12714595]
[1745558342619,1e-08,151.73,151.71,25.77679481]
[1745558344536,1e-08,151.73,151.72,7.12714595]
[1745558345321,1e-08,151.73,151.72,32.36788365]
[1745558346128,1e-08,151.73,151.72,58.36788365]
[1745558348732,1e-08,151.73,151.72,51.2407377]
[1745558348934,1e-08,151.73,151.72,44.64964886]
[1745558349140,1e-08,151.73,151.72,51.77679481]
[1745558350930,1e-08,151.73,151.72,58.36788365]
[1745558355136,1e-08,151.73,151.72,59.34771391]
[1745558358025,1e-08,151.73,151.72,59.20555234]
[1745558366636,1e-08,151.73,151.72,59.34771391]
[1745558367351,0.03,151.77,151.76,54.42754018]
[1745558367529,0.03,151.77,151.76,26.75564509]
[1745558368051,0.03,151.77,151.76,25.77679481]
[1745558368649,0.03,151.77,151.76,32.36614641]
[1745558371162,0.03,151.77,151.76,39.63545393]
[1745558371330,0.03,151.77,151.76,61.01689178]
[1745558375264,0.03,151.77,151.76,32.36614641]
[1745558375747,0.03,151.77,151.76,58.36614641]
[1745558379243,0.03,151.77,151.76,51.77679481]
[1745558379959,0.03,151.77,151.76,58.36614641]
[1745558380476,0.03,151.77,151.76,58.50830798]
[1745558385067,0.03,151.77,151.76,58.36614641]
[1745558387492,0.03,151.77,151.76,51.77679481]
[1745558388566,0.03,151.77,151.76,58.36614641]
[1745558395104,0.03,151.77,151.76,51.77679481]
[1745558396180,0.03,151.77,151.76,26.0]
[1745558400408,0.03,151.77,151.76,39.71649755]
[1745558400792,0.03,151.77,151.76,33.12714595]
[1745558400992,0.03,151.77,151.76,26.0]
[1745558403412,0.03,151.77,151.76,33.12714595]
[1745558403603,0.03,151.77,151.76,39.71649755]
[1745558404205,0.03,151.77,151.76,58.36614641]
[1745558404892,0.03,151.77,151.76,58.50830798]
[1745558407511,0.03,151.77,151.76,61.01689178]
[1745558409316,0.03,151.77,151.76,32.50830798]
[1745558409621,0.03,151.77,151.76,61.01689178]
[1745558423934,0.03,151.8,151.79,26.0]
[1745558424128,0.03,151.84,151.8,18.64964886]
[1745558424638,0.03,151.84,151.81,0.83582607]
[1745558425140,0.03,151.84,151.83,18.64964886]
[1745558425339,0.03,151.84,151.83,25.77679481]
[1745558426024,0.03,151.84,151.79,39.0]
[1745558426206,0.03,151.84,151.82,7.12714595]
[1745558426207,1.6505,151.84,151.82,7.12714595]
[1745558433248,1.6505,151.84,151.8,18.64964886]
[1745558433545,1.6505,151.84,151.82,7.12714595]
[1745558433750,1.6505,151.84,151.83,7.12714595]
[1745558434058,0.03,151.84,151.83,7.12714595]
[1745558436247,0.03,151.84,151.83,25.77679481]
[1745558437242,0.03,151.84,151.83,32.36310845]
[1745558437826,0.03,151.84,151.83,25.77679481]
[1745558438337,0.03,151.84,151.83,32.36310845]
[1745558440152,0.03,151.84,151.83,33.34068461]
[1745558440351,0.03,151.84,151.83,61.84926841]
[1745558444844,0.03,151.84,151.83,33.34068461]
[1745558448749,0.03,151.84,151.83,61.84926841]
[1745558449451,0.03,151.84,151.83,33.34068461]
[1745558451564,0.03,151.84,151.83,61.84926841]
[1745558453788,0.03,151.84,151.83,33.34068461]
[1745558455193,0.03,151.84,151.83,61.84926841]
[1745558458484,0.03,151.84,151.83,33.34068461]
[1745558460377,0.03,151.89,151.87,18.64964886]
[1745558460579,0.03,151.89,151.88,7.12714595]
[1745558461171,0.03,151.89,151.88,13.71129132]
[1745558464378,0.03,151.89,151.87,25.23408148]
[1745558464578,0.03,151.89,151.86,26.0]
[1745558464779,0.03,151.89,151.87,26.0]
[1745558465275,0.03,151.89,151.87,33.12714595]
[1745558467002,1.6061,151.88,151.84,6.58586405]
[1745558467207,15.39124595,151.88,151.84,18.64964886]
[1745558468703,7.12714595,151.87,151.84,18.64964886]
[1745558470189,7.12714595,151.85,151.8,18.64964886]
[1745558470390,7.12714595,151.82,151.79,18.64964886]
[1745558470696,7.12714595,151.82,151.79,44.64964886]
[1745558470914,7.12714595,151.82,151.79,18.64964886]
[1745558471273,7.12714595,151.82,151.79,44.64964886]
[1745558472100,7.12714595,151.81,151.79,18.64964886]
[1745558472296,7.12714595,151.8,151.76,18.64964886]
[1745558474801,7.12714595,151.8,151.76,25.77679481]
[1745558475505,7.12714595,151.8,151.76,18.64964886]
[1745558475806,1.64694459,151.82,151.76,18.64964886]
[1745558475807,7.12714595,151.79,151.76,18.64964886]
[1745558476982,7.12714595,151.8,151.76,18.64964886]
[1745558479793,7.12714595,151.79,151.76,18.64964886]
[1745558480397,7.12714595,151.8,151.76,18.64964886]
[1745558483110,7.12714595,151.8,151.76,25.23895805]
[1745558483916,7.12714595,151.8,151.76,18.64964886]
[1745558484302,7.12714595,151.78,151.75,26.0]
[1745558485399,7.12714595,151.79,151.75,32.58970576]
[1745558486283,7.12714595,151.79,151.75,26.0]
[1745558486913,7.12714595,151.78,151.74,25.77679481]
[1745558487229,7.12714595,151.78,151.74,18.64964886]
[1745558487790,7.12714595,151.76,151.73,26.063]
[1745558487989,7.12714595,151.75,151.73,0.063]
[1745558488712,7.12714595,151.74,151.73,0.063]
[1745558490220,8.76534595,151.74,151.73,0.063]
[1745558491015,14.95424595,151.74,151.69,0.063]
[1745558491214,7.12714595,151.7,151.69,0.063]
[1745558491890,7.12714595,151.71,151.69,0.063]
[1745558492093,7.12714595,151.7,151.69,0.063]
[1745558492290,7.12714595,151.72,151.69,0.063]
[1745558494019,7.12714595,151.71,151.69,0.063]
[1745558495012,7.12714595,151.7,151.69,0.063]
[1745558495918,7.12714595,151.71,151.69,0.063]
[1745558497622,97.3282356,151.73,151.69,0.063]
[1745558497802,91.47500385,151.75,151.71,7.12714595]
[1745558498512,91.47500385,151.75,151.7,25.77679481]
[1745558499112,91.47500385,151.75,151.7,32.36873232]
[1745558499406,91.47500385,151.75,151.7,25.24158637]
[1745558499407,89.82714595,151.75,151.7,25.24158637]
[1745558499592,89.82714595,151.75,151.71,7.12714595]
[1745558499924,89.82714595,151.75,151.7,25.77679481]
[1745558500422,89.82714595,151.75,151.71,7.12714595]
[1745558501328,82.7,151.75,151.71,7.12714595]
[1745558501534,89.82714595,151.75,151.7,18.64964886]
[1745558501741,7.12714595,151.74,151.7,18.64964886]
[1745558501915,7.12714595,151.74,151.7,25.77679481]
[1745558502231,7.12714595,151.72,151.69,0.063]
[1745558503226,7.12714595,151.73,151.69,0.063]
[1745558503434,1.64791947,151.75,151.69,0.063]
[1745558503435,7.12714595,151.74,151.69,25.83979481]
[1745558504030,7.12714595,151.73,151.69,25.83979481]
[1745558505424,7.12714595,151.73,151.69,18.71264886]
[1745558506928,7.12714595,151.72,151.69,18.71264886]
[1745558507144,8.77500239,151.71,151.69,0.063]
[1745558507311,7.12714595,151.7,151.69,0.063]
[1745558507912,7.12714595,151.71,151.69,0.063]
[1745558508839,8.74524595,151.73,151.69,0.063]
[1745558510231,7.12714595,151.73,151.69,7.19014595]
[1745558510409,7.12714595,151.74,151.69,7.19014595]
[1745558510734,7.12714595,151.74,151.7,7.12714595]
[1745558511314,7.12714595,151.74,151.7,25.77679481]
[1745558512837,84.34785644,151.75,151.7,25.77679481]
[1745558513130,7.12714595,151.74,151.7,32.36874982]
[1745558513332,7.12714595,151.74,151.7,25.77679481]
[1745558515040,7.12714595,151.74,151.7,18.64964886]
[1745558515244,84.34785644,151.75,151.7,18.64964886]
[1745558515245,7.12714595,151.73,151.7,18.64964886]
[1745558517442,7.12714595,151.72,151.69,0.063]
[1745558519544,7.12714595,151.71,151.69,0.063]
[1745558519715,8.77505931,151.7,151.69,0.063]
[1745558520435,7.12714595,151.7,151.69,0.063]
[1745558526959,7.12714595,151.71,151.69,0.063]
[1745558527836,7.12714595,151.7,151.69,0.063]
[1745558530351,7.12714595,151.71,151.69,0.063]
[1745558532155,21.77518039,151.72,151.69,0.063]
[1745558532359,7.12714595,151.72,151.69,0.063]
[1745558532543,7.12714595,151.74,151.7,7.12714595]
[1745558532736,84.34790365,151.75,151.7,7.12714595]
[1745558532944,91.4750496,151.75,151.7,7.12714595]
[1745558534336,7.12714595,151.74,151.69,13.78248958]
[1745558536445,7.12714595,151.74,151.7,7.12714595]
[1745558540070,91.4750496,151.75,151.71,7.12714595]
[1745558540454,82.7,151.75,151.72,7.12714595]
[1745558542749,82.7,151.75,151.71,25.77679481]
[1745558542750,89.82714595,151.75,151.71,25.77679481]
[1745558542949,7.12714595,151.75,151.71,25.77679481]
[1745558545279,7.12714595,151.75,151.71,32.36830996]
[1745558546374,7.12714595,151.76,151.71,32.36830996]
[1745558547765,8.77471217,151.77,151.73,7.12714595]
[1745558548287,14.6058,151.8,151.76,7.12714595]
[1745558548288,1.64745737,151.79,151.76,7.12714595]
[1745558548446,85.95298596,151.8,151.76,7.12714595]
[1745558548650,84.37718596,151.8,151.76,7.12714595]
[1745558549577,82.73,151.8,151.77,7.12714595]
[1745558549881,0.03,151.8,151.77,7.12714595]
[1745558550676,0.03,151.8,151.78,7.12714595]
[1745558551375,0.03,151.8,151.78,18.64964886]
[1745558552977,0.03,151.8,151.76,7.12714595]
[1745558553271,1.67694699,151.8,151.76,7.12714595]
[1745558557556,8.80409294,151.8,151.76,7.12714595]
[1745558559579,1.67694699,151.8,151.76,7.12714595]
[1745558560275,1.67694699,151.8,151.77,7.12714595]
[1745558560482,0.03,151.8,151.77,25.77679481]
[1745558561293,7.15714595,151.8,151.74,1.5359]
[1745558561457,7.15714595,151.8,151.76,18.64964886]
[1745558562688,0.03,151.8,151.76,25.77679481]
[1745558562980,0.03,151.8,151.77,7.12714595]
[1745558563378,0.03,151.8,151.78,7.12714595]
[1745558565365,0.03,151.8,151.79,25.77679481]
[1745558568783,0.03,151.8,151.79,32.36484408]
[1745558575796,0.03,151.8,151.79,25.77679481]
[1745558577391,0.03,151.8,151.79,32.36484408]
[1745558584298,0.03,151.8,151.79,33.3434581]
[1745558584597,0.03,151.81,151.79,34.9602581]
[1745558584897,0.03,151.81,151.8,25.91895638]
[1745558585979,0.03,151.81,151.8,20.10714595]
[1745558586999,0.03,151.81,151.8,26.69476123]
[1745558587989,0.03,151.81,151.8,45.48657166]
[1745558588403,0.03,151.81,151.8,38.75679481]
[1745558588586,0.03,151.81,151.8,64.75679481]
[1745558589100,1.03,151.81,151.79,88.62714595]
[1745558589294,1.03,151.81,151.79,26.0]
[1745558589295,1.0,151.8,151.79,26.0]
[1745558589503,1.0,151.8,151.77,18.64964886]
[1745558589875,1.0,151.79,151.77,18.64964886]
[1745558590100,1.0,151.79,151.76,31.62964886]
[1745558590276,1.0,151.78,151.76,31.62964886]
[1745558590478,1.0,151.79,151.76,44.64964886]
[1745558590694,1.0,151.78,151.76,44.64964886]
[1745558591413,1.0,151.78,151.76,51.77679481]
[1745558592313,1.0,151.78,151.76,58.36607431]
[1745558594305,1.0,151.78,151.76,51.77679481]